Workbook

Sheet Sheet1 (hidden)
A1: EMPLOYEE NAME | C1: Mike Hemmeter
A2: 2020-2021
C3: TOTAL SALARY
A4: ANNUAL SALARY | C4: 64730
A5: MONTHLY SALARY | C5: =C4/12 -> 5394.166667
A7: PAID FROM: ACCOUNT | B7: PERCENTAGE
A9: 02-1304 | B9: 0.67 | C9: =C5*B9 -> 3614.091667
A10: 02-3615 | B10: 0.07 | C10: =C5*B10 -> 377.5916667
A11: 02-1319 | B11: 0.07 | C11: =C5*B11 -> 377.5916667
A12: 01-1319 | B12: 0.19 | C12: =C5*B12 -> 1024.891667
A17: DOUBLE CHECK ON FIGURES | C17: =SUM(C9:C16) -> 5394.166667
A50: HC1945

Sheet Payroll Calculation Template
C2: =NOW() -> 2021-03-01T09:56:49.160
C3: Howard College
C4: Payroll Calculations Template
C6: Employee Name: | D6: Howie Hawk
C7: Effective Date: | D7: 2021-03-01
C9: Annual Salary: | D9: 25000
C10: Monthly Salary: | D10: =D9/12 -> 2083.333333
C12: Site: | D12: Howard College | E12: SWCD | F12: Totals
C13: Site Percentages: | D13: 0.6 | E13: 0.4 | F13: =SUM(D13:E13) -> 1
C14: Site Annual Amount: | D14: =D9*D13 -> 15000 | E14: =D9*E13 -> 10000 | F14: =SUM(D14:E14) -> 25000
C15: Site Monthly Amount: | D15: =D10*D13 -> 1250 | E15: =D10*E13 -> 833.3333333 | F15: =SUM(D15:E15) -> 2083.333333
C17: Howard College | D17: Howard College
C18: Account Number | D18: Percentage | E18: Annual Salary | F18: Monthly Salary
C19: 1-10-65-01-9999-56010 | D19: 0.5 | E19: =$D$14*D19 -> 7500 | F19: =$D$15*D19 -> 625
C20: 1-10-65-01-9999-56020 | D20: 0.5 | E20: =$D$14*D20 -> 7500 | F20: =$D$15*D20 -> 625
D21: 0 | E21: 0 | F21: 0
D22: 0 | E22: 0 | F22: 0
D23: 0 | E23: 0 | F23: 0
D24: 0 | E24: 0 | F24: 0
D25: 0 | E25: 0 | F25: 0
C26: Totals: | D26: =SUM(D19:D25) -> 1 | E26: =SUM(E19:E25) -> 15000 | F26: =SUM(F19:F25) -> 1250
C27: Error Checking: | D27: =IF(AND(D13=0,D26=0),"All Good!",IF(AND(D13>0,D14=E26),"All Good!","Error%%")) -> All Good! | E27: =IF(E26<>D14,"Amount Error!","All Good!") -> All Good! | F27: =IF(F26<>D15,"Amount Error!","All Good!") -> All Good!
C29: SWCD | D29: SWCD
C30: Account Number | D30: Percentage | E30: Annual Salary | F30: Monthly Salary
C31: 4-15-65-04-9999-56010 | D31: 1 | E31: =$E$14*D31 -> 10000 | F31: =$E$15*D31 -> 833.3333333
D32: 0 | E32: =$E$14*D32 -> 0 | F32: =$E$15*D32 -> 0
D33: 0 | E33: 0 | F33: 0
D34: 0 | E34: 0 | F34: 0
D35: 0 | E35: 0 | F35: 0
D36: 0 | E36: 0 | F36: 0
D37: 0 | E37: 0 | F37: 0
C38: Totals: | D38: =SUM(D31:D37) -> 1 | E38: =SUM(E31:E37) -> 10000 | F38: =SUM(F31:F37) -> 833.3333333
C39: Error Checking: | D39: =IF(AND(E13=0,E14=0),"All Good!",IF(AND(E13>0,E14=E38),"All Good!","Error%%")) -> All Good! | E39: =IF(E38<>E14,"Amount Error!","All Good!") -> All Good! | F39: =IF(F38<>E15,"Amount Error!","All Good!") -> All Good!
C41: Totals: | D41: Percentage | E41: Annual Salary | F41: Monthly Salary
C42: Totals: | D42: =IF(OR(D26=0,D38=0),SUM(D26,D38),SUM(D26,D38)/2) -> 1 | E42: =SUM(E26,E38) -> 25000 | F42: =SUM(F26,F38) -> 2083.333333
C43: Error Checking: | D43: =IF(F13=0,"All Good!",IF(D42<>1,"% <> Error!","All Good!")) -> All Good! | E43: =IF(E42<>D9,"Amount Error!","All Good!") -> All Good! | F43: =IF(F42<>D10,"Amount Error!","All Good!") -> All Good!
